bitfinex/quotes_ETHUSD_20250623
["timestamp","ask_amount","ask_price","bid_price","bid_amount"]
[1750666962918,2.6492,2268.7,2268.3,0.0619]
[1750666963717,2.6492,2268.7,2268.2,0.0619]
[1750666963901,2.6492,2268.7,2268.1,14.40887986]
[1750666964089,2.6492,2268.7,2268.2,1.96175447]
[1750666964284,2.6492,2268.7,2268.3,0.0619]
[1750666964710,2.6492,2268.7,2268.1,0.0619]
[1750666965589,2.6492,2268.7,2268.1,4.4708681]
[1750666966691,2.6492,2268.7,2268.3,0.0619]
[1750666966891,2.6492,2268.7,2268.2,4.40876934]
[1750666967129,2.6492,2268.7,2268.2,5.29055473]
[1750666967724,2.6492,2268.7,2268.2,0.88178539]
[1750666967926,2.6492,2268.7,2268.1,4.40888062]
[1750666969024,2.6492,2268.7,2268.2,4.40877932]
[1750666969688,2.6492,2268.7,2267.9,4.40926318]
[1750666969892,0.7162,2268.6,2267.8,4.40947122]
[1750666970123,0.7162,2269.2,2268.6,4.40782326]
[1750666970308,2.6462,2269.2,2268.7,4.40769648]
[1750666970510,2.6462,2269.2,2268.4,10.0]
[1750666970710,2.6462,2269.2,2268.4,14.40824548]
[1750666971021,2.6462,2269.2,2268.5,4.40804243]
[1750666971215,2.6462,2269.2,2268.6,1.88162879]
[1750666971612,2.6462,2269.2,2268.5,4.40817326]
[1750666971825,2.6462,2269.2,2268.5,4.4522529]
[1750666972015,2.6462,2269.2,2268.7,4.40779893]
[1750666972328,2.6462,2269.2,2268.6,4.40790351]
[1750666972515,0.7162,2269.4,2269.1,4.40693996]
[1750666973029,0.7162,2269.4,2269.2,4.40683584]
[1750666973233,0.7162,2269.6,2269.1,4.40693316]
[1750666974441,0.7162,2269.6,2269.0,4.40712639]
[1750666975522,0.7162,2269.6,2269.0,4.45119277]
[1750666976803,0.7162,2269.6,2269.0,4.40712639]
[1750666977232,0.7162,2269.6,2268.9,14.45138125]
[1750666977431,1.2662,2269.4,2268.5,0.8209]
[1750666977945,1.2662,2269.4,2268.6,4.40798988]
[1750666978248,0.7162,2269.3,2268.5,15.22899882]
[1750666978404,1.929,2269.2,2268.6,1.96373604]
[1750666978825,1.929,2269.2,2268.3,0.8139]
[1750666978826,1.929,2269.2,2268.7,4.40778312]
[1750666979030,1.929,2269.2,2268.6,4.40791363]
[1750666979819,1.929,2269.2,2268.5,14.40813279]
[1750666980024,1.929,2269.2,2268.4,14.40826236]
[1750666980333,1.929,2269.2,2268.3,5.22246423]
[1750666980334,0.7162,2269.1,2268.3,0.8139]
[1750666980532,0.7162,2268.9,2268.1,1.325127]
[1750666980710,1.929,2268.8,2268.2,4.40866601]
[1750666981106,7.9002,2268.9,2268.5,4.408178]
[1750666981107,0.7162,2268.9,2268.5,4.408178]
[1750666981537,0.7162,2269.2,2268.6,4.40790364]
[1750666981741,2.6452,2269.2,2268.5,4.45222783]
[1750666981928,2.6452,2269.2,2268.6,1.44522278]
[1750666982133,2.6452,2269.2,2268.6,4.40797519]
[1750666982640,2.6452,2269.2,2268.5,4.40809289]
[1750666983731,0.7162,2269.2,2268.6,0.04407603]
[1750666983937,2.6452,2269.5,2269.0,4.40713117]
[1750666984140,0.7162,2269.5,2268.8,10.0]
[1750666984369,0.7162,2269.5,2268.8,4.40748421]
[1750666985438,0.7162,2269.5,2268.7,4.4076493]
[1750666985755,0.7162,2269.5,2268.9,14.40738553]
[1750666986764,0.7162,2269.5,2269.0,4.40714084]
[1750666986922,0.7162,2269.5,2269.1,1.44071408]
[1750666986923,2.6452,2269.5,2269.1,1.44071408]
[1750666987653,2.6452,2269.5,2269.1,5.8477377]
[1750666987958,2.6452,2269.5,2269.1,1.44071408]
[1750666989065,2.6452,2269.5,2269.1,5.8476321]
[1750666989778,2.6452,2269.5,2269.1,5.8916983]
[1750666989958,2.6452,2269.5,2269.1,1.48478028]
[1750666990133,2.6452,2269.5,2269.1,1.44071408]
[1750666990333,2.6452,2269.5,2269.1,5.84774164]
[1750666990547,2.6452,2269.5,2269.1,5.8918075]
[1750666991237,2.6452,2269.5,2269.1,1.48477994]
[1750666991636,2.6452,2269.5,2269.1,5.89179532]
[1750666992161,2.6452,2269.5,2269.2,4.40681956]
[1750666992355,2.6452,2269.5,2269.2,5.56333052]
[1750666992759,2.6452,2269.5,2269.2,1.15651096]
[1750666993071,2.6452,2269.5,2269.1,0.0440658]
[1750666993458,2.6452,2269.5,2269.1,4.45107883]
[1750666993659,2.6452,2269.5,2269.1,0.0440658]
[1750666993860,2.6452,2269.5,2269.0,0.43969472]
[1750666994068,2.6452,2269.5,2268.9,4.40731372]
[1750666994405,2.6452,2269.5,2268.9,6.50414105]
[1750666994575,0.7162,2269.0,2268.7,1.32491]
[1750666994732,1.929,2268.9,2268.2,4.40868367]
[1750666994937,1.929,2268.9,2268.2,4.40867852]
[1750666995180,1.929,2268.9,2268.3,0.96265963]
[1750666997949,1.929,2268.9,2268.3,5.37123435]
[1750666998650,2.6432,2269.0,2268.3,5.37123435]
[1750667000067,2.6432,2269.0,2268.2,14.40868179]
[1750667000248,0.7162,2268.9,2268.2,10.0]
[1750667001353,0.7162,2268.9,2268.2,14.40876232]
[1750667002381,0.7162,2268.9,2268.3,10.0]
[1750667002588,1.03552,2268.9,2268.1,15.17386992]
[1750667002793,0.7162,2268.8,2268.1,14.40886992]
[1750667003454,0.7162,2268.8,2268.3,10.0]
[1750667004396,0.7162,2268.8,2268.2,4.40877382]
[1750667004579,0.7162,2268.8,2268.3,4.40857836]
[1750667004782,0.7162,2268.8,2268.3,0.8861629]
[1750667005592,0.7162,2268.8,2268.3,5.29473664]
[1750667005888,0.7162,2268.8,2268.4,4.40834391]
[1750667006073,0.7162,2268.8,2268.3,5.29466676]
[1750667006586,0.7162,2268.8,2268.3,0.8861629]
[1750667006885,0.7162,2268.8,2268.0,4.40916718]
[1750667006886,0.7162,2268.8,2268.0,4.40902263]
[1750667007454,0.7162,2268.8,2268.1,4.4088498]
[1750667007683,0.7162,2268.8,2268.2,4.40869695]
[1750667008566,0.7162,2268.8,2268.0,4.4090725]
[1750667008762,0.7162,2268.8,2267.8,17.77820459]
[1750667008763,0.7162,2268.6,2267.8,0.43571512]
[1750667008975,0.7162,2268.4,2267.7,4.40964158]
[1750667009180,0.7162,2268.4,2267.6,4.40986695]
[1750667009380,0.7162,2268.4,2267.7,10.0]
[1750667010089,0.7162,2268.4,2267.8,4.40947397]
[1750667010389,0.7162,2268.4,2267.8,6.29139929]
[1750667011191,0.7162,2268.4,2267.9,4.4093586]
[1750667011510,0.7162,2268.4,2267.8,6.29139752]
[1750667013281,0.7162,2268.4,2268.0,4.40906482]
[1750667013483,0.7162,2268.4,2267.8,6.29143914]
[1750667013699,0.7162,2268.4,2267.9,5.03840136]
[1750667013863,0.7162,2268.4,2268.0,4.40916843]
[1750667014197,0.7162,2268.4,2268.0,4.40906818]
[1750667014399,0.7162,2268.4,2268.1,4.40897206]
[1750667014587,0.7162,2268.4,2268.0,4.45317085]
[1750667014897,0.7162,2268.4,2268.1,0.94916022]
[1750667015100,0.7162,2268.4,2268.1,5.35811413]
[1750667015897,1.927,2268.6,2268.1,5.35811413]
[1750667015898,2.6432,2268.6,2268.2,4.40877837]
[1750667016781,2.6432,2268.6,2268.1,0.94916022]
[1750667016981,2.6432,2268.6,2268.3,4.40858391]
[1750667017184,2.6432,2268.6,2268.3,5.38964873]
[1750667017380,17.183,2269.0,2268.3,5.38964873]
[1750667017381,0.7162,2269.0,2268.3,0.98106482]
[1750667017572,2.6432,2269.0,2268.6,4.407908]
[1750667017894,0.7162,2269.0,2268.6,4.40791379]
[1750667018374,0.7162,2269.0,2268.7,4.40779191]
[1750667018571,0.7162,2269.0,2268.7,5.28939103]
[1750667018973,1.927,2269.2,2268.8,4.40747942]
[1750667019279,1.927,2269.2,2268.7,5.28930549]
[1750667019593,1.927,2269.2,2268.8,0.04407089]
[1750667020492,1.927,2269.2,2268.7,5.28930549]
[1750667021014,1.927,2269.2,2268.8,0.04407147]
[1750667021513,1.927,2269.2,2268.8,4.45167452]
[1750667023010,1.927,2269.2,2268.8,0.04407147]
[1750667023372,1.927,2269.2,2268.8,4.45166388]
[1750667023714,1.927,2269.2,2268.9,4.40740615]
[1750667023909,1.927,2269.2,2268.9,5.2933331]
[1750667024212,1.927,2269.2,2269.0,0.04407061]
[1750667024374,1.927,2269.2,2268.9,5.29324213]
[1750667024576,1.927,2269.2,2268.7,4.40769332]
[1750667024811,1.927,2269.2,2268.8,4.40761079]
[1750667024999,1.927,2269.2,2268.7,4.4077418]
[1750667025203,1.927,2269.2,2268.8,4.40748963]
[1750667026498,1.927,2269.2,2268.7,4.40769742]
[1750667026701,1.927,2269.2,2268.6,4.40793745]
[1750667026901,1.927,2269.2,2268.6,6.36898506]
[1750667027414,1.927,2269.2,2268.6,1.96104761]
[1750667027718,0.7162,2269.1,2268.5,4.40810884]
[1750667027895,0.7162,2269.1,2268.4,15.20277108]
[1750667028098,0.7162,2269.1,2268.6,4.40800469]
[1750667030237,0.7162,2269.1,2268.7,4.40780785]
[1750667030740,0.7162,2269.1,2268.6,4.40789523]
[1750667030913,0.7162,2269.1,2268.6,6.36893641]
[1750667032244,0.7162,2269.1,2268.7,4.40779111]
[1750667035441,0.7162,2269.8,2268.9,4.40724564]
[1750667035745,10.7162,2269.5,2268.9,4.40724564]
[1750667035959,10.7162,2269.5,2269.0,0.96073407]
[1750667036240,10.7162,2269.5,2268.9,4.40724564]
[1750667036841,0.7162,2269.5,2268.8,11.3889572]
[1750667037072,12.518,2270.0,2269.3,4.40653938]
[1750667037346,10.7162,2269.9,2269.3,4.40653938]
[1750667037505,10.7162,2269.9,2269.3,6.38909448]
[1750667037708,10.7162,2269.9,2269.3,1.9825551]
[1750667038048,10.7162,2269.9,2269.4,4.40633433]
[1750667038355,0.7162,2269.9,2269.5,4.40613095]
[1750667040345,0.7162,2269.9,2269.6,4.40596997]
[1750667040536,1.925,2270.0,2269.7,4.85078524]
[1750667041137,0.7162,2270.3,2269.7,10.64854745]
[1750667041437,0.7162,2271.1,2270.1,4.40498627]
[1750667041636,0.7162,2271.1,2270.0,4.40528634]
[1750667041637,0.7162,2271.0,2270.0,4.40528634]
[1750667041848,0.7162,2271.0,2270.0,14.40528634]
[1750667042048,0.7162,2270.8,2270.1,7.00402812]
[1750667042360,0.7162,2270.6,2270.1,2.59897534]
[1750667042526,0.55,2270.5,2269.7,10.44500296]
[1750667042725,0.55,2270.5,2269.7,0.44500296]
[1750667042726,0.7162,2270.4,2269.7,0.44500296]
[1750667042926,0.7162,2270.4,2269.4,14.40637038]
[1750667043170,0.7162,2270.4,2269.5,4.40625688]
[1750667043347,0.7162,2270.8,2269.7,10.93978947]
[1750667043552,0.7162,2270.8,2270.1,10.7803]
[1750667043873,0.7162,2271.0,2270.3,10.15948947]
[1750667044076,0.7162,2271.0,2270.4,4.40432868]
[1750667044377,0.7162,2271.0,2270.5,4.40422993]
[1750667044661,0.7162,2271.0,2270.4,4.40444773]
[1750667044961,0.7162,2271.0,2270.2,2.09397895]
[1750667045141,0.7162,2271.0,2270.4,4.4043819]
[1750667045552,0.7162,2271.0,2270.3,4.69202868]
[1750667045876,0.7162,2271.0,2270.4,4.40449339]
[1750667046029,0.7162,2271.0,2270.4,4.44841952]
[1750667046230,0.7162,2271.0,2270.5,4.4043062]
[1750667046573,0.7162,2271.0,2270.6,0.44483458]
[1750667047083,0.7162,2271.0,2270.6,4.89287346]
[1750667047376,0.7162,2271.0,2270.6,4.84883385]
[1750667047524,0.7162,2271.0,2270.6,0.44483458]
[1750667049351,0.7162,2271.0,2270.3,4.69206389]
[1750667049680,0.7162,2271.0,2270.4,4.40448493]
[1750667049880,0.7162,2271.0,2270.5,4.40430846]
[1750667050377,0.7162,2271.0,2270.6,4.4480065]
[1750667050575,0.7162,2271.0,2270.7,4.40381264]
[1750667050776,0.7162,2271.0,2270.8,0.88077796]
[1750667051178,1.924,2271.1,2270.8,0.88077796]
[1750667051605,1.924,2271.1,2270.8,5.28447871]
[1750667051887,1.924,2271.1,2270.9,4.44751636]
[1750667052180,1.924,2271.1,2270.9,0.04403088]
[1750667052354,1.924,2271.1,2270.9,0.97323264]
[1750667052781,1.924,2271.1,2271.0,4.40334654]
[1750667053346,1.924,2271.1,2270.8,5.28438209]
[1750667053552,0.7162,2271.2,2270.8,0.88077796]
[1750667053872,0.7162,2271.2,2270.8,5.28446629]
[1750667054242,0.7162,2271.2,2270.9,4.40351385]
[1750667054470,0.7162,2271.2,2271.0,0.96879801]
[1750667054780,0.7162,2271.2,2270.6,11.58403857]
[1750667054980,0.7162,2271.2,2270.7,4.40392595]
[1750667055968,0.7162,2271.2,2270.6,11.58406681]
[1750667056373,0.7162,2271.2,2270.7,4.40389376]
[1750667056574,0.7162,2271.2,2270.6,4.40406681]
[1750667056775,0.7162,2271.2,2270.7,5.53627065]
[1750667057480,0.7162,2271.2,2270.8,4.40371875]
[1750667057890,0.7162,2271.2,2270.7,5.53620403]
[1750667058381,0.7162,2271.2,2270.8,4.4037334]
[1750667059876,0.7162,2271.2,2270.9,4.40349776]
[1750667060188,0.7162,2271.5,2271.0,0.88512635]
[1750667060489,0.7162,2271.5,2270.9,4.40344519]
[1750667060982,0.7162,2271.5,2271.0,4.40331361]
[1750667061388,0.7162,2271.5,2271.0,0.04403035]
[1750667061588,0.7162,2271.5,2271.2,4.40284065]
[1750667061900,0.7162,2271.5,2271.2,4.92570775]
[1750667062072,0.7162,2271.5,2271.3,4.40267493]
[1750667062254,0.7162,2271.5,2271.2,4.92572008]
[1750667062587,0.7162,2271.5,2271.2,0.5228671]
[1750667062991,0.7162,2271.5,2271.2,0.45137342]
[1750667063292,0.7162,2271.5,2270.9,11.57743196]
[1750667063894,0.7162,2271.5,2270.9,4.40343196]
[1750667064090,0.7162,2271.5,2270.7,11.13235468]
[1750667064294,0.7162,2271.5,2270.7,1.13235468]
[1750667064460,0.7162,2271.3,2270.7,1.13235468]
[1750667065701,0.7162,2271.3,2270.8,6.67465919]
[1750667065992,0.7162,2271.3,2270.8,2.27103861]
[1750667066287,0.7162,2271.3,2270.7,1.13235468]
[1750667066491,0.7162,2271.3,2270.7,5.53625926]
[1750667066860,0.7162,2271.3,2270.8,4.4037142]
[1750667067060,0.7162,2271.3,2270.9,4.44748199]
[1750667067561,0.7162,2271.3,2270.8,4.40362408]
[1750667067762,0.7162,2271.3,2270.8,7.41239401]
[1750667068802,0.7162,2271.3,2270.8,3.00876993]
[1750667069188,0.7162,2271.3,2270.7,1.13235468]
[1750667069390,0.7162,2271.3,2270.6,21.57810458]
[1750667070892,1.60213293,2271.6,2270.3,4.69202429]
[1750667071204,1.60213293,2271.6,2270.4,5.20710341]
[1750667071205,0.55,2271.4,2270.4,5.20710341]
[1750667071408,0.2472,2271.3,2270.5,1.12231316]
[1750667071805,0.2472,2271.3,2270.5,5.52662674]
[1750667071967,0.2472,2271.3,2270.6,4.40409407]
[1750667072167,0.2472,2271.3,2270.5,5.52653367]
[1750667073622,0.2472,2271.3,2270.6,4.40410954]
[1750667073914,0.6462,2271.2,2270.6,0.99746803]
[1750667074114,0.6462,2271.2,2270.4,4.40440153]
[1750667074315,0.6462,2271.2,2270.4,8.80876837]
[1750667074518,0.6462,2271.2,2270.4,4.40436684]
[1750667074718,0.6462,2271.2,2270.3,6.01605343]
[1750667074719,0.6462,2271.0,2270.3,13.18999599]
[1750667074888,0.6462,2271.0,2270.3,11.86601599]
[1750667075068,0.6462,2271.0,2270.4,1.70736072]
[1750667075494,0.6462,2271.0,2270.3,4.73605814]
[1750667075705,0.6462,2271.0,2270.4,4.40450068]
[1750667076102,0.6462,2271.0,2270.4,4.40451021]
[1750667076423,0.6462,2271.0,2270.5,4.44823384]
[1750667076574,0.6462,2271.0,2270.5,4.40419171]
[1750667076773,0.6462,2271.0,2270.6,0.88087019]
[1750667078847,0.6462,2271.0,2270.6,5.28496772]
[1750667079041,0.6462,2271.0,2270.7,4.4039059]
[1750667079211,0.6462,2271.0,2270.7,0.044037]
[1750667079610,0.6462,2271.0,2270.7,4.44795257]
[1750667079941,0.6462,2271.3,2270.8,5.36876767]
[1750667080445,0.6462,2271.3,2270.8,7.88274774]
[1750667080649,0.6462,2271.3,2270.8,0.96510611]
[1750667083117,0.6462,2271.3,2270.8,5.41276604]
[1750667084029,0.6462,2271.3,2270.8,0.96510611]
[1750667086352,0.6462,2271.3,2270.8,5.36883853]
[1750667086646,0.6462,2271.3,2270.9,4.94035936]
[1750667087149,12.5682,2271.5,2271.0,11.32096723]
[1750667087311,12.5682,2271.5,2271.0,12.11876723]
[1750667088549,4.646,2272.7,2271.0,12.11876723]
[1750667088550,11.2362,2271.9,2271.2,6.91764163]
[1750667088845,0.6462,2271.9,2271.3,4.40261374]
[1750667088998,0.6462,2271.9,2271.4,1.57230492]
[1750667089626,0.6462,2271.9,2271.2,0.43535381]
[1750667089827,0.6462,2271.9,2271.1,8.4976]
[1750667090240,0.6462,2271.9,2271.0,5.20103229]
[1750667090538,0.6462,2271.9,2271.0,13.69770929]
[1750667091238,0.6462,2271.9,2271.1,4.4031488]
[1750667091435,0.6462,2271.9,2271.2,2.50184997]
[1750667094864,0.6462,2271.9,2271.1,4.40314939]
[1750667095925,0.6462,2271.9,2271.0,6.52472648]
[1750667096845,10.6462,2271.9,2271.0,5.72692648]
[1750667097048,10.6462,2271.9,2264.9,35.90692989]
[1750667097049,0.6462,2271.5,2270.3,1.922]
[1750667097226,0.6462,2271.3,2270.6,10.0]
[1750667097428,0.6462,2271.3,2270.6,11.323898]
[1750667097654,0.6462,2271.3,2270.5,4.40418504]
[1750667098141,0.6462,2271.2,2270.4,7.72897185]
[1750667098330,0.6462,2271.2,2270.5,5.61767079]
[1750667098520,0.6462,2271.2,2270.5,1.21336602]
[1750667098714,0.6462,2271.2,2270.5,5.61766053]
[1750667099552,0.6462,2271.2,2270.6,4.40411755]
[1750667100142,0.6462,2271.2,2270.5,5.61766053]
[1750667100143,0.6462,2271.2,2270.5,5.61762545]
[1750667100321,0.6462,2271.2,2270.6,0.76918995]
[1750667101363,0.6462,2271.2,2270.5,1.21336602]
[1750667101533,0.6462,2271.2,2270.5,1.25740311]
[1750667102048,0.6462,2271.2,2270.5,5.6617051]
[1750667102619,0.6462,2271.2,2270.5,1.21336602]
[1750667102867,0.6462,2271.2,2270.4,1.323974]
[1750667103033,0.6462,2271.2,2270.3,10.0]
[1750667103222,0.6462,2271.2,2270.3,11.324033]
[1750667103418,0.55,2271.1,2270.3,1.324033]
[1750667103648,0.6462,2270.8,2270.0,0.44440523]
[1750667103818,0.6462,2270.6,2269.9,1.324033]
[1750667104018,0.6462,2270.6,2269.9,1.77229623]
[1750667104319,0.6462,2270.6,2270.0,0.04404793]
[1750667104630,0.6462,2270.6,2269.9,6.17766699]
[1750667105031,0.6462,2270.6,2270.0,0.04404697]
[1750667105356,0.6462,2270.6,2270.1,4.40500615]
[1750667105533,0.6462,2270.6,2270.2,0.04404291]
[1750667105728,0.6462,2270.6,2270.1,5.21450615]
[1750667105930,1.922,2270.7,2270.3,10.0]
[1750667106444,0.6462,2270.8,2270.3,10.0]
[1750667106618,0.6462,2270.8,2270.4,1.44048907]
[1750667108366,0.6462,2270.8,2270.2,5.72891731]
[1750667108564,0.6462,2270.8,2270.2,1.324067]
[1750667109063,0.6462,2270.8,2270.3,0.04404094]
[1750667110169,0.6462,2270.8,2270.0,22.78510447]
[1750667110170,0.6462,2270.8,2270.0,11.06273539]
[1750667110348,0.6462,2270.8,2270.0,1.06273539]
[1750667110551,0.6462,2270.8,2269.9,0.44826323]
[1750667110552,0.6462,2270.7,2269.9,0.44826323]
[1750667110745,0.6462,2270.5,2269.7,12.39883463]
[1750667111273,0.6462,2270.5,2269.8,0.04404909]
[1750667112188,0.6462,2270.5,2269.7,7.993]
[1750667113070,0.6462,2270.5,2269.8,0.04404908]
[1750667113273,0.6462,2270.5,2269.8,2.30276486]
[1750667114273,0.6462,2270.5,2269.8,7.15921705]
[1750667114476,0.6462,2270.5,2269.8,2.75355976]
[1750667115564,0.6462,2270.5,2269.8,2.70951068]
[1750667116084,0.6462,2270.4,2269.8,0.4507949]
[1750667116297,0.6462,2270.4,2269.5,6.92557188]
[1750667117072,0.6462,2270.4,2269.5,11.78164489]
[1750667117794,10.0,2270.5,2269.2,0.7893]
[1750667117795,0.6462,2270.2,2269.2,0.7893]
[1750667118089,10.0,2270.0,2269.2,1.65288924]
[1750667118293,0.6462,2269.8,2269.0,0.4412251]
[1750667118447,0.6462,2269.5,2268.6,7.72657188]
[1750667118644,6.92557188,2269.7,2268.6,12.13457275]
[1750667118645,0.6462,2269.3,2268.6,12.13457275]
[1750667119103,0.6462,2269.3,2268.6,7.72657188]
[1750667119400,0.6462,2269.3,2268.5,0.44781714]
[1750667119548,0.6462,2269.3,2268.5,4.40808826]
[1750667119955,0.6462,2269.3,2268.5,4.45216434]
[1750667120160,0.6462,2269.3,2268.5,0.04407608]
[1750667122075,0.6462,2269.1,2268.1,0.8104]
[1750667122259,0.6462,2269.0,2268.1,5.21928305]
[1750667122781,0.6462,2269.0,2268.3,4.40847943]
[1750667123093,0.6462,2269.0,2268.4,0.04407897]
[1750667123300,0.6462,2268.8,2268.1,0.44433269]
[1750667123526,0.6462,2268.8,2268.0,14.40907563]
[1750667123696,0.6462,2268.8,2268.1,3.88478398]
[1750667124011,0.6462,2268.7,2267.7,0.8151]
[1750667124187,0.6462,2268.5,2267.7,0.44102468]
[1750667124366,0.6462,2268.3,2267.5,7.1471187]
[1750667124968,0.6462,2268.3,2267.7,4.40965862]
[1750667125166,0.6462,2268.3,2267.6,4.40984806]
[1750667125404,0.6462,2268.3,2267.7,0.71469481]
[1750667125603,0.6462,2268.3,2267.8,0.04409027]
[1750667126567,0.6462,2268.3,2267.7,1.14875583]
[1750667126765,0.6462,2268.3,2267.2,2.079594]
[1750667126991,0.6462,2268.3,2267.3,4.45449523]
[1750667127214,0.6462,2268.3,2267.4,10.0]
[1750667127778,0.6462,2268.3,2267.3,4.41040054]
[1750667127978,10.0,2268.3,2267.3,4.85452521]
[1750667128179,0.6462,2268.1,2267.4,1.56085252]
[1750667128611,0.6462,2268.1,2266.9,0.8284]
[1750667128776,0.6462,2267.7,2266.8,0.43260444]
[1750667128980,0.6462,2267.7,2266.4,14.57842866]
[1750667128981,0.6462,2267.5,2266.4,2.086187]
[1750667129286,11.922,2267.4,2266.7,4.41156142]
[1750667129615,0.6462,2267.5,2266.8,11.04860601]
[1750667129616,1.922,2267.3,2266.8,11.04860601]
[1750667129916,1.922,2267.3,2266.8,0.88233294]
[1750667130133,1.922,2267.3,2266.7,4.41161071]
[1750667130278,1.922,2267.3,2266.4,0.7601]
[1750667130279,0.6462,2267.2,2266.4,0.7601]
[1750667130614,0.6462,2267.2,2266.4,5.17229232]
[1750667130791,0.6462,2267.2,2266.5,4.4120614]
[1750667131708,0.6462,2267.2,2266.4,5.17231298]
[1750667131907,0.6462,2267.2,2266.5,11.75010932]
[1750667132093,2.5692,2267.6,2267.2,4.41072212]
[1750667132418,2.5692,2267.6,2267.2,0.0381]
[1750667132419,0.6462,2267.6,2267.2,0.0381]
[1750667132915,0.6462,2267.6,2267.2,4.4488052]
[1750667133222,0.6462,2267.6,2267.3,1.90259867]
[1750667133715,0.6462,2267.6,2267.4,0.0381]
[1750667134191,0.6462,2267.6,2267.0,0.0381]
[1750667134699,0.6462,2267.4,2266.6,0.0381]
[1750667134920,0.6462,2267.4,2266.8,0.0381]
[1750667135128,0.6462,2267.4,2266.8,0.48747867]
[1750667135301,0.6462,2267.4,2266.9,0.0381]
[1750667135628,2.5692,2267.4,2267.0,0.0381]
[1750667135991,1.923,2267.7,2267.0,0.0381]
[1750667136193,1.923,2267.7,2267.4,0.0381]
[1750667136388,2.5692,2267.7,2267.2,0.0381]
[1750667136626,2.5692,2267.7,2267.1,0.0381]
[1750667136799,2.5692,2267.7,2267.1,0.08220268]
[1750667137003,2.5692,2267.7,2267.2,0.0381]
[1750667137333,2.5692,2267.7,2267.1,0.0381]
[1750667137501,2.5692,2267.7,2267.1,2.58344646]
[1750667137706,0.6462,2267.7,2267.2,4.4107194]
[1750667137894,0.6462,2267.7,2267.3,4.45452623]
[1750667138089,0.6462,2267.7,2267.3,0.04410073]
[1750667138625,0.6462,2267.7,2267.1,2.53934573]
[1750667138831,0.6462,2267.7,2267.2,1.73913622]
[1750667139314,0.6462,2267.7,2267.3,4.41053115]
[1750667139514,0.6462,2267.7,2267.4,0.04409768]
[1750667140121,0.6462,2267.7,2267.2,1.69503744]
[1750667140446,0.6462,2267.7,2267.1,2.53934573]
[1750667140600,0.6462,2267.7,2266.9,10.0]
[1750667141932,0.6462,2267.7,2266.9,4.4112674]
[1750667142103,0.6462,2267.7,2267.0,0.04410502]
[1750667142289,0.6462,2267.7,2267.0,4.45520573]
[1750667143327,0.6462,2267.7,2266.9,0.04410496]
[1750667143524,0.6462,2267.7,2266.9,2.77641332]
[1750667143728,0.6462,2267.7,2266.9,2.73230836]
[1750667145331,0.6462,2267.7,2267.0,0.04410575]
[1750667146552,0.6462,2267.7,2266.8,4.41139625]
[1750667146553,0.6462,2267.7,2266.9,0.04410574]
[1750667147056,0.6462,2267.7,2266.9,4.45539826]
[1750667147350,0.6462,2267.7,2267.0,0.88667945]
[1750667147730,0.6462,2267.7,2266.7,4.41158302]
[1750667148144,0.6462,2267.7,2266.8,4.41149361]
[1750667148341,0.6462,2267.7,2266.7,4.41159491]
[1750667148550,0.6462,2267.7,2266.8,0.04410824]
[1750667148845,0.6462,2267.7,2266.6,15.73792089]
[1750667149039,0.6462,2267.5,2266.7,7.04622335]
[1750667149241,1.923,2267.4,2266.7,2.63452768]
[1750667149446,0.6462,2267.3,2266.7,2.5904194]
[1750667149762,0.6462,2267.3,2266.6,11.32614]
[1750667150371,0.6462,2267.3,2266.6,10.0]
[1750667150679,0.6462,2267.3,2266.7,0.04411115]
[1750667150880,0.6462,2267.3,2266.7,4.45570316]
[1750667151273,0.6462,2267.3,2266.8,4.41146292]
[1750667151573,1.923,2268.0,2267.3,4.41049326]
[1750667151741,1.923,2268.0,2267.4,4.45434969]
[1750667152378,1.923,2268.0,2267.5,0.0381]
[1750667153645,1.923,2268.0,2267.4,0.0440984]
[1750667153839,1.923,2268.0,2266.9,0.88672635]
[1750667153840,0.6462,2267.9,2267.3,0.0381]
[1750667154040,0.6462,2267.8,2267.3,0.0381]
[1750667154274,0.6462,2267.8,2267.2,0.0381]
[1750667154581,0.6462,2267.8,2267.3,0.0381]
[1750667154763,0.6462,2267.8,2267.3,0.04410004]
[1750667154968,0.6462,2267.8,2267.4,0.0381]
[1750667155551,0.6462,2267.8,2267.5,0.04410091]
[1750667155788,2.5692,2268.0,2267.6,0.0381]
[1750667156887,0.6462,2268.0,2267.6,0.0381]
[1750667157480,0.6462,2268.0,2267.4,1.325618]
[1750667157673,0.6462,2268.0,2267.4,1.36970903]
[1750667158065,0.6462,2268.0,2267.3,0.44547981]
[1750667158285,1.70249782,2268.0,2267.2,5.17862459]
[1750667158487,1.70249782,2268.0,2267.2,2.093742]
[1750667158791,1.70249782,2268.0,2267.2,6.50445709]
[1750667160656,1.70249782,2268.0,2267.3,4.41044979]
[1750667160862,0.6462,2268.0,2267.3,4.45454469]
[1750667161101,0.6462,2268.0,2267.4,1.09590018]
[1750667161685,0.6462,2268.0,2267.2,2.093742]
[1750667161889,0.6462,2267.9,2267.0,10.0]
[1750667162091,0.6462,2267.9,2267.1,4.41089969]
[1750667162257,0.6462,2267.9,2267.0,14.41100074]
[1750667162457,0.6462,2267.9,2267.1,0.0381]
[1750667163089,7.182,2267.8,2267.1,0.0381]
[1750667163262,1.42902,2267.7,2267.1,0.0381]
[1750667163462,1.923,2267.6,2267.1,0.0381]
[1750667163662,1.923,2267.6,2267.0,10.0]
[1750667163870,1.923,2267.6,2267.1,0.0381]
[1750667164295,1.923,2267.6,2267.0,10.0]
[1750667164483,1.923,2267.6,2267.0,13.1986294]
[1750667164681,1.923,2267.6,2267.1,0.0381]
[1750667164911,0.6462,2267.5,2267.1,0.0381]
[1750667165209,0.6462,2267.5,2267.0,0.0381]
[1750667166011,0.6462,2267.5,2266.8,0.0381]
[1750667166211,0.6462,2267.3,2266.8,0.0381]
[1750667166509,1.923,2267.2,2267.0,4.41102418]
[1750667166689,7.8282,2267.5,2267.1,0.0381]
[1750667166890,7.8282,2267.5,2267.1,0.04410336]